[Event "Live Chess"]
[Site "Chess.com"]
[Date "2023.05.21"]
[Round "-"]
[White "AlanPaling"]
[Black "WelshTiger"]
[Result "0-1"]
[WhiteElo "1382"]
[BlackElo "2362"]
[TimeControl "300"]
[EndTime "18:18:41 PDT"]
[Termination "WelshTiger won by resignation"]

1. c4 {[%clk 0:04:57]} 1... e6 {[%clk 0:04:54.2]} 2. g3 {[%clk 0:04:54.3]} 2...
d5 {[%clk 0:04:50.7]} 3. Bg2 {[%clk 0:04:53.1]} 3... Nf6 {[%clk 0:04:48.5]} 4.
Nf3 {[%clk 0:04:51.8]} 4... Be7 {[%clk 0:04:47.2]} 5. b3 {[%clk 0:04:49.4]} 5...
c5 {[%clk 0:04:43.9]} 6. cxd5 {[%clk 0:04:46.5]} 6... exd5 {[%clk 0:04:42.5]} 7.
d4 {[%clk 0:04:42.5]} 7... O-O {[%clk 0:04:40.8]} 8. O-O {[%clk 0:04:37.9]} 8...
Nc6 {[%clk 0:04:39.8]} 9. Bb2 {[%clk 0:04:32.8]} 9... Bg4 {[%clk 0:04:35.1]} 10.
h3 {[%clk 0:04:28.8]} 10... Bf5 {[%clk 0:04:29]} 11. Kh2 {[%clk 0:04:19.6]}
11... Rc8 {[%clk 0:04:21.1]} 12. Nbd2 {[%clk 0:04:06.7]} 12... Nb4 {[%clk
0:04:09.4]} 13. a3 {[%clk 0:04:00.3]} 13... Na6 {[%clk 0:04:03.9]} 14. Rc1
{[%clk 0:03:55]} 14... h6 {[%clk 0:03:51.7]} 15. e3 {[%clk 0:03:51.6]} 15... Be6
{[%clk 0:03:47.3]} 16. dxc5 {[%clk 0:03:36.7]} 16... Nxc5 {[%clk 0:03:45]} 17.
Nb1 {[%clk 0:03:26.8]} 17... Nce4 {[%clk 0:03:42.2]} 18. Nfd2 {[%clk 0:03:19.8]}
18... Rxc1 {[%clk 0:03:33.1]} 19. Qxc1 {[%clk 0:03:11.7]} 19... Bd6 {[%clk
0:03:30.5]} 20. b4 {[%clk 0:02:58.7]} 20... Qb8 {[%clk 0:03:25.5]} 21. f4 {[%clk
0:02:46]} 21... Rc8 {[%clk 0:03:19.7]} 22. Qd1 {[%clk 0:02:35.2]} 22... Qc7
{[%clk 0:03:13.2]} 23. Nxe4 {[%clk 0:02:27.3]} 23... Nxe4 {[%clk 0:03:08.1]} 24.
Qd3 {[%clk 0:02:13.2]} 24... Qc2 {[%clk 0:03:02.3]} 25. Qxc2 {[%clk 0:01:56.7]}
25... Rxc2 {[%clk 0:03:00.5]} 26. Bd4 {[%clk 0:01:53.5]} 26... a6 {[%clk
0:02:55.1]} 27. Rd1 {[%clk 0:01:30.4]} 27... h5 {[%clk 0:02:47.7]} 28. h4 {[%clk
0:00:53.9]} 28... Nf2 {[%clk 0:02:43.9]} 29. Rd2 {[%clk 0:00:43.4]} 29... Ng4+
{[%clk 0:02:42.7]} 30. Kg1 {[%clk 0:00:31.5]} 30... Rc1+ {[%clk 0:02:41.6]} 0-1

[Event "Live Chess"]
[Site "Chess.com"]
[Date "2023.05.21"]
[Round "-"]
[White "Singapourfeuj"]
[Black "nigelst"]
[Result "1-0"]
[WhiteElo "2160"]
[BlackElo "1767"]
[TimeControl "300"]
[EndTime "18:18:51 PDT"]
[Termination "Singapourfeuj won by resignation"]

1. e4 {[%clk 0:04:58.8]} 1... c6 {[%clk 0:04:59.1]} 2. Nc3 {[%clk 0:04:57]} 2...
d5 {[%clk 0:04:58.6]} 3. d3 {[%clk 0:04:54.3]} 3... e5 {[%clk 0:04:55.5]} 4. Nf3
{[%clk 0:04:53.1]} 4... Bg4 {[%clk 0:04:52]} 5. h3 {[%clk 0:04:52]} 5... Bxf3
{[%clk 0:04:51]} 6. Qxf3 {[%clk 0:04:50.9]} 6... Nf6 {[%clk 0:04:49.5]} 7. Bg5
{[%clk 0:04:49.5]} 7... Be7 {[%clk 0:04:47.6]} 8. Bxf6 {[%clk 0:04:47.7]} 8...
Bxf6 {[%clk 0:04:46.4]} 9. exd5 {[%clk 0:04:46.9]} 9... cxd5 {[%clk 0:04:44.1]}
10. Nxd5 {[%clk 0:04:45.8]} 10... Nc6 {[%clk 0:04:42]} 11. Nxf6+ {[%clk
0:04:44.4]} 11... gxf6 {[%clk 0:04:39.7]} 12. Be2 {[%clk 0:04:41.6]} 12... Qb6
{[%clk 0:04:36.2]} 13. O-O {[%clk 0:04:39.5]} 13... Nd4 {[%clk 0:04:29.7]} 14.
Qe3 {[%clk 0:04:32.8]} 14... Qxb2 {[%clk 0:04:23.3]} 15. Rab1 {[%clk 0:04:29.1]}
15... Qxc2 {[%clk 0:04:22.1]} 16. Bg4 {[%clk 0:04:23.8]} 16... O-O {[%clk
0:04:10.8]} 17. Rxb7 {[%clk 0:04:17.9]} 17... f5 {[%clk 0:04:08.1]} 18. Qxe5
{[%clk 0:04:10.5]} 18... Rad8 {[%clk 0:03:57.1]} 19. Bxf5 {[%clk 0:04:06.1]}
19... Qc6 {[%clk 0:03:38.2]} 20. Be4 {[%clk 0:04:02.5]} 20... Qe6 {[%clk
0:03:33]} 21. Qxe6 {[%clk 0:04:00.5]} 21... Nxe6 {[%clk 0:03:31.8]} 22. Rxa7
{[%clk 0:03:59.3]} 22... Nf4 {[%clk 0:03:28.5]} 23. a4 {[%clk 0:03:57.7]} 23...
Nxd3 {[%clk 0:03:25.5]} 24. Bxd3 {[%clk 0:03:56.7]} 24... Rxd3 {[%clk
0:03:24.3]} 25. Ra1 {[%clk 0:03:55.4]} 25... Rfd8 {[%clk 0:03:21.4]} 26. Re7
{[%clk 0:03:53.8]} 26... Rd1+ {[%clk 0:03:20]} 27. Re1 {[%clk 0:03:52.3]} 27...
R1d2 {[%clk 0:03:15.5]} 28. a5 {[%clk 0:03:50.5]} 28... Rb2 {[%clk 0:03:14.2]}
29. a6 {[%clk 0:03:49.5]} 29... Rdd2 {[%clk 0:03:13]} 30. a7 {[%clk 0:03:46.2]}
30... Rxf2 {[%clk 0:03:11.8]} 31. a8=Q+ {[%clk 0:03:44.6]} 31... Kg7 {[%clk
0:03:10.7]} 32. Rf1 {[%clk 0:03:42.2]} 1-0

[Event "Live Chess"]
[Site "Chess.com"]
[Date "2023.05.21"]
[Round "-"]
[White "ExIsambard"]
[Black "CheckThis4"]
[Result "0-1"]
[WhiteElo "1923"]
[BlackElo "2514"]
[TimeControl "300"]
[EndTime "18:19:01 PDT"]
[Termination "CheckThis4 won by checkmate"]

1. d4 {[%clk 0:04:58.6]} 1... Nf6 {[%clk 0:04:57.8]} 2. Nf3 {[%clk 0:04:57.3]}
2... g6 {[%clk 0:04:56.4]} 3. Bg5 {[%clk 0:04:57.2]} 3... Bg7 {[%clk 0:04:55.7]}
4. e3 {[%clk 0:04:56.5]} 4... O-O {[%clk 0:04:54.4]} 5. Bd3 {[%clk 0:04:55.8]}
5... d6 {[%clk 0:04:51.3]} 6. Nbd2 {[%clk 0:04:54.7]} 6... c5 {[%clk 0:04:48.4]}
7. Qe2 {[%clk 0:04:53.1]} 7... b6 {[%clk 0:04:43.3]} 8. O-O-O {[%clk 0:04:51.2]}
8... Bb7 {[%clk 0:04:41.6]} 9. h4 {[%clk 0:04:32.6]} 9... Nbd7 {[%clk
0:04:34.4]} 10. h5 {[%clk 0:04:31.3]} 10... b5 {[%clk 0:04:22.7]} 11. c3 {[%clk
0:04:29.2]} 11... b4 {[%clk 0:04:19.9]} 12. c4 {[%clk 0:04:25.6]} 12... a5
{[%clk 0:03:55.8]} 13. hxg6 {[%clk 0:04:22.9]} 13... fxg6 {[%clk 0:03:54.1]} 14.
Bh6 {[%clk 0:04:21.6]} 14... a4 {[%clk 0:03:51.2]} 15. Bxg7 {[%clk 0:04:17.8]}
15... Kxg7 {[%clk 0:03:51.1]} 16. Ng5 {[%clk 0:04:15.9]} 16... Kg8 {[%clk
0:03:42.8]} 17. Ne6 {[%clk 0:04:13.6]} 17... Qe8 {[%clk 0:03:41.3]} 18. Nxf8
{[%clk 0:04:12.2]} 18... Qxf8 {[%clk 0:03:40.4]} 19. d5 {[%clk 0:04:06]} 19...
a3 {[%clk 0:03:38]} 20. b3 {[%clk 0:03:43.4]} 20... Qg7 {[%clk 0:03:36.6]} 21.
Nb1 {[%clk 0:03:21.8]} 21... Rf8 {[%clk 0:03:21.6]} 22. Rh4 {[%clk 0:03:01.5]}
22... Ne5 {[%clk 0:03:18.9]} 23. f3 {[%clk 0:02:32.2]} 23... Ba6 {[%clk
0:03:02.7]} 24. e4 {[%clk 0:02:09.6]} 24... g5 {[%clk 0:02:59.7]} 25. Rh3 {[%clk
0:01:50.3]} 25... Bc8 {[%clk 0:02:58]} 26. Rh2 {[%clk 0:01:48.1]} 26... h5
{[%clk 0:02:46.3]} 27. Rdh1 {[%clk 0:01:16.9]} 27... h4 {[%clk 0:02:34.6]} 28.
g3 {[%clk 0:01:05.9]} 28... Nh5 {[%clk 0:02:22.9]} 29. gxh4 {[%clk 0:00:50.8]}
29... Nf4 {[%clk 0:02:19.5]} 30. hxg5 {[%clk 0:00:23.6]} 30... Nexd3+ {[%clk
0:02:14.9]} 31. Kd2 {[%clk 0:00:15]} 31... Nxe2 {[%clk 0:02:13.2]} 32. Kxe2
{[%clk 0:00:14.7]} 32... Nf4+ {[%clk 0:02:11.1]} 33. Ke3 {[%clk 0:00:13.2]}
33... Qd4# {[%clk 0:02:05.7]} 0-1

[Event "Live Chess"]
[Site "Chess.com"]
[Date "2023.05.21"]
[Round "-"]
[White "manthanit"]
[Black "laminaaprod"]
[Result "0-1"]
[WhiteElo "1055"]
[BlackElo "2264"]
[TimeControl "300"]
[EndTime "18:19:19 PDT"]
[Termination "laminaaprod won by checkmate"]

1. e4 {[%clk 0:04:57.1]} 1... e5 {[%clk 0:04:53.3]} 2. Nf3 {[%clk 0:04:56.6]}
2... d5 {[%clk 0:04:50.8]} 3. exd5 {[%clk 0:04:52.9]} 3... e4 {[%clk 0:04:50.1]}
4. Ne5 {[%clk 0:04:47.6]} 4... Qxd5 {[%clk 0:04:48.4]} 5. Qh5 {[%clk 0:04:31.8]}
5... Nf6 {[%clk 0:04:40.7]} 6. Bb5+ {[%clk 0:04:27.8]} 6... c6 {[%clk
0:04:35.8]} 7. Qxf7+ {[%clk 0:04:17.2]} 7... Qxf7 {[%clk 0:04:27.1]} 8. Nxf7
{[%clk 0:04:16.4]} 8... Kxf7 {[%clk 0:04:26.4]} 9. Bc4+ {[%clk 0:04:16]} 9...
Be6 {[%clk 0:04:24.7]} 10. Na3 {[%clk 0:04:07.1]} 10... Bxa3 {[%clk 0:04:22.7]}
11. Bxe6+ {[%clk 0:04:05.1]} 11... Kxe6 {[%clk 0:04:22.2]} 12. bxa3 {[%clk
0:04:04.6]} 12... Nbd7 {[%clk 0:04:21.9]} 13. d3 {[%clk 0:04:02.4]} 13... Rae8
{[%clk 0:04:21.8]} 14. O-O {[%clk 0:04:00.7]} 14... exd3 {[%clk 0:04:20.9]} 15.
cxd3 {[%clk 0:03:59.5]} 15... Kf7 {[%clk 0:04:20.8]} 16. Be3 {[%clk 0:03:53.3]}
16... Re6 {[%clk 0:04:20.7]} 17. Rab1 {[%clk 0:03:47.5]} 17... b6 {[%clk
0:04:18.7]} 18. h3 {[%clk 0:03:41.8]} 18... Rhe8 {[%clk 0:04:16.5]} 19. Rfc1
{[%clk 0:03:38.2]} 19... c5 {[%clk 0:04:14]} 20. d4 {[%clk 0:03:34.3]} 20... Nd5
{[%clk 0:04:11.5]} 21. a4 {[%clk 0:03:23.2]} 21... Nxe3 {[%clk 0:04:10.2]} 22.
fxe3 {[%clk 0:03:22.4]} 22... Rxe3 {[%clk 0:04:10]} 23. Rf1+ {[%clk 0:03:21.3]}
23... Kg8 {[%clk 0:04:08.8]} 24. dxc5 {[%clk 0:03:19.1]} 24... Nxc5 {[%clk
0:04:07.8]} 25. a5 {[%clk 0:03:15.2]} 25... bxa5 {[%clk 0:03:53.3]} 26. Rb5
{[%clk 0:03:13.4]} 26... Ne4 {[%clk 0:03:45.9]} 27. Rxa5 {[%clk 0:03:08]} 27...
Ng3 {[%clk 0:03:43.3]} 28. Rf2 {[%clk 0:03:01.7]} 28... h5 {[%clk 0:03:38.3]}
29. Rxa7 {[%clk 0:02:59]} 29... h4 {[%clk 0:03:37.2]} 30. a4 {[%clk 0:02:51.1]}
30... Re1+ {[%clk 0:03:35.6]} 31. Kh2 {[%clk 0:02:49.9]} 31... Rh1# {[%clk
0:03:35.5]} 0-1

[Event "Live Chess"]
[Site "Chess.com"]
[Date "2023.05.21"]
[Round "-"]
[White "whatnot126"]
[Black "smoggyrabbit"]
[Result "1-0"]
[WhiteElo "2051"]
[BlackElo "1743"]
[TimeControl "300"]
[EndTime "18:19:49 PDT"]
[Termination "whatnot126 won by resignation"]

1. e4 {[%clk 0:04:58.6]} 1... e6 {[%clk 0:04:59]} 2. d4 {[%clk 0:04:57.5]} 2...
d5 {[%clk 0:04:58]} 3. e5 {[%clk 0:04:56.4]} 3... c5 {[%clk 0:04:56.8]} 4. c3
{[%clk 0:04:55.9]} 4... Nc6 {[%clk 0:04:55.8]} 5. Nf3 {[%clk 0:04:55.1]} 5...
Bd7 {[%clk 0:04:55.1]} 6. Bd3 {[%clk 0:04:54.5]} 6... Rc8 {[%clk 0:04:54.2]} 7.
dxc5 {[%clk 0:04:52.8]} 7... Bxc5 {[%clk 0:04:52.5]} 8. b4 {[%clk 0:04:52.4]}
8... Bf8 {[%clk 0:04:40.6]} 9. Na3 {[%clk 0:04:49.5]} 9... Nge7 {[%clk
0:04:33.7]} 10. O-O {[%clk 0:04:48.7]} 10... Ng6 {[%clk 0:04:32.5]} 11. Re1
{[%clk 0:04:48.1]} 11... Qc7 {[%clk 0:04:12.2]} 12. Nb5 {[%clk 0:04:46.8]} 12...
Qb8 {[%clk 0:04:09.4]} 13. a4 {[%clk 0:04:11.9]} 13... Ncxe5 {[%clk 0:04:02]}
14. Nxe5 {[%clk 0:04:10.1]} 14... Nxe5 {[%clk 0:03:53.3]} 15. Bf4 {[%clk
0:04:09.2]} 15... f6 {[%clk 0:03:45.4]} 16. Qh5+ {[%clk 0:04:05.5]} 16... Kd8
{[%clk 0:02:56.5]} 17. Rac1 {[%clk 0:04:04.2]} 17... Bxb5 {[%clk 0:02:50.6]} 18.
Bxb5 {[%clk 0:04:03.1]} 18... Bd6 {[%clk 0:02:47.6]} 19. Bxe5 {[%clk 0:03:45.4]}
19... Bxe5 {[%clk 0:02:44.8]} 20. Qf7 {[%clk 0:03:44.2]} 20... Qd6 {[%clk
0:02:11.1]} 21. c4 {[%clk 0:03:34.3]} 21... Rc7 {[%clk 0:02:02.2]} 22. Qh5
{[%clk 0:03:27.5]} 22... Qxb4 {[%clk 0:01:51.7]} 23. cxd5 {[%clk 0:03:21.8]}
23... Rxc1 {[%clk 0:01:47.4]} 24. Rxc1 {[%clk 0:03:21.1]} 24... Qd2 {[%clk
0:01:40.3]} 25. Rd1 {[%clk 0:03:08]} 25... Qb2 {[%clk 0:01:12.4]} 26. dxe6+
{[%clk 0:02:54.8]} 26... Kc7 {[%clk 0:00:53.8]} 27. Qf7+ {[%clk 0:02:52.4]}
27... Kb6 {[%clk 0:00:52]} 28. e7 {[%clk 0:02:44.1]} 28... Qc2 {[%clk
0:00:35.4]} 29. Qh5 {[%clk 0:02:24.5]} 29... g6 {[%clk 0:00:20.1]} 30. Qf3
{[%clk 0:02:19.7]} 30... Qc8 {[%clk 0:00:15.2]} 31. Qe3+ {[%clk 0:02:14.4]}
31... Kc7 {[%clk 0:00:12.9]} 32. Rc1+ {[%clk 0:02:13.4]} 32... Kb8 {[%clk
0:00:11.4]} 33. Rxc8+ {[%clk 0:02:12.4]} 33... Rxc8 {[%clk 0:00:10.8]} 34. e8=Q
{[%clk 0:02:11.3]} 34... Rxe8 {[%clk 0:00:10.2]} 35. Bxe8 {[%clk 0:02:10.1]} 1-0

[Event "Live Chess"]
[Site "Chess.com"]
[Date "2023.05.21"]
[Round "-"]
[White "LodeshChess"]
[Black "ShanthamGrarks"]
[Result "0-1"]
[WhiteElo "1184"]
[BlackElo "2002"]
[TimeControl "300"]
[EndTime "18:19:49 PDT"]
[Termination "ShanthamGrarks won by resignation"]

1. e4 {[%clk 0:04:59.4]} 1... e6 {[%clk 0:04:54.5]} 2. d4 {[%clk 0:04:57.9]}
2... d5 {[%clk 0:04:54.1]} 3. e5 {[%clk 0:04:57.6]} 3... c5 {[%clk 0:04:51.3]}
4. c3 {[%clk 0:04:57.3]} 4... Nc6 {[%clk 0:04:50.5]} 5. Nf3 {[%clk 0:04:56.9]}
5... cxd4 {[%clk 0:04:49.5]} 6. Bd3 {[%clk 0:04:45.2]} 6... dxc3 {[%clk
0:04:43.9]} 7. Nxc3 {[%clk 0:04:44.3]} 7... Bb4 {[%clk 0:04:41.4]} 8. O-O {[%clk
0:04:38.3]} 8... h6 {[%clk 0:04:37.6]} 9. Qb3 {[%clk 0:04:26.9]} 9... Bxc3
{[%clk 0:04:35.6]} 10. Qxc3 {[%clk 0:04:25.7]} 10... Bd7 {[%clk 0:04:34.2]} 11.
Bb5 {[%clk 0:04:21.2]} 11... Rc8 {[%clk 0:04:31.5]} 12. Be3 {[%clk 0:04:12.7]}
12... a6 {[%clk 0:04:29.6]} 13. Bxc6 {[%clk 0:04:03.1]} 13... Bxc6 {[%clk
0:04:26.4]} 14. Qb3 {[%clk 0:03:58.2]} 14... Bb5 {[%clk 0:04:20.6]} 15. Rfc1
{[%clk 0:03:48.8]} 15... Ne7 {[%clk 0:04:18.5]} 16. Bc5 {[%clk 0:03:36.9]} 16...
O-O {[%clk 0:04:10.2]} 17. Qb4 {[%clk 0:03:26]} 17... Re8 {[%clk 0:04:02.6]} 18.
Bxe7 {[%clk 0:03:23.1]} 18... Rxc1+ {[%clk 0:04:00.6]} 19. Rxc1 {[%clk 0:03:21]}
19... Qxe7 {[%clk 0:03:56.1]} 20. Qxe7 {[%clk 0:03:14.4]} 20... Rxe7 {[%clk
0:03:56]} 21. Rc8+ {[%clk 0:03:12.9]} 21... Kh7 {[%clk 0:03:54.9]} 22. h3 {[%clk
0:03:04.6]} 22... Rd7 {[%clk 0:03:47.1]} 23. Nd4 {[%clk 0:02:55.9]} 23... Bd3
{[%clk 0:03:41.1]} 24. b4 {[%clk 0:02:49.3]} 24... b6 {[%clk 0:03:31.1]} 25. a3
{[%clk 0:02:47.7]} 25... a5 {[%clk 0:03:29.6]} 26. bxa5 {[%clk 0:02:42.3]} 26...
bxa5 {[%clk 0:03:27.7]} 27. f4 {[%clk 0:02:36.6]} 27... Rb7 {[%clk 0:03:25.7]}
28. Ra8 {[%clk 0:02:19.4]} 28... Rb1+ {[%clk 0:03:13.8]} 29. Kf2 {[%clk
0:02:15.1]} 29... Be4 {[%clk 0:03:12.9]} 30. Rxa5 {[%clk 0:02:00.5]} 30... Rb2+
{[%clk 0:03:10.6]} 31. Ne2 {[%clk 0:01:58.7]} 31... Bd3 {[%clk 0:03:08.4]} 32.
Ke3 {[%clk 0:01:48.5]} 32... Bxe2 {[%clk 0:03:06.5]} 33. Ra7 {[%clk 0:01:46.4]}
33... Bf1 {[%clk 0:02:53.8]} 34. Rxf7 {[%clk 0:01:41.4]} 34... Bxg2 {[%clk
0:02:51.8]} 35. h4 {[%clk 0:01:24.6]} 35... Rb3+ {[%clk 0:02:49.3]} 36. Kd4
{[%clk 0:01:22.3]} 36... Rxa3 {[%clk 0:02:46.9]} 37. Re7 {[%clk 0:01:21.4]}
37... Bh3 {[%clk 0:02:45.3]} 38. Kc5 {[%clk 0:01:13]} 38... Bf5 {[%clk
0:02:42.6]} 39. Kd6 {[%clk 0:01:11.9]} 39... d4 {[%clk 0:02:40.9]} 40. Kc5
{[%clk 0:01:08.1]} 40... d3 {[%clk 0:02:38.7]} 41. Rd7 {[%clk 0:01:07.4]} 41...
Ra4 {[%clk 0:02:35.7]} 42. Kb5 {[%clk 0:01:04.2]} 42... Rxf4 {[%clk 0:02:33.1]}
43. Kc6 {[%clk 0:00:57]} 43... Rxh4 {[%clk 0:02:31.8]} 44. Kc7 {[%clk
0:00:56.1]} 44... Rh2 {[%clk 0:02:28.2]} 45. Kd8 {[%clk 0:00:52.2]} 45... d2
{[%clk 0:02:26.6]} 46. Ke8 {[%clk 0:00:51.6]} 46... Rg2 {[%clk 0:02:19.8]} 47.
Kf8 {[%clk 0:00:46.5]} 47... h5 {[%clk 0:02:17.9]} 48. Kf7 {[%clk 0:00:23]}
48... h4 {[%clk 0:02:13.4]} 49. Rd8 {[%clk 0:00:22.5]} 49... h3 {[%clk
0:02:10.3]} 0-1

[Event "Live Chess"]
[Site "Chess.com"]
[Date "2023.05.21"]
[Round "-"]
[White "blowerd"]
[Black "Biranidun"]
[Result "0-1"]
[WhiteElo "1359"]
[BlackElo "2579"]
[TimeControl "300"]
[EndTime "18:20:00 PDT"]
[Termination "Biranidun won by checkmate"]

1. e4 {[%clk 0:04:57.8]} 1... c5 {[%clk 0:04:59]} 2. Nf3 {[%clk 0:04:55.6]} 2...
d6 {[%clk 0:04:58.1]} 3. Bc4 {[%clk 0:04:54.6]} 3... Nf6 {[%clk 0:04:57.3]} 4.
Nc3 {[%clk 0:04:52.5]} 4... g6 {[%clk 0:04:56.4]} 5. d4 {[%clk 0:04:51.7]} 5...
cxd4 {[%clk 0:04:55.5]} 6. Nxd4 {[%clk 0:04:50.1]} 6... Bg7 {[%clk 0:04:55.1]}
7. Bg5 {[%clk 0:04:44.8]} 7... O-O {[%clk 0:04:54.3]} 8. Bxf6 {[%clk 0:04:43.6]}
8... Bxf6 {[%clk 0:04:53.4]} 9. O-O {[%clk 0:04:40.6]} 9... Nc6 {[%clk
0:04:52.7]} 10. Nxc6 {[%clk 0:04:38.7]} 10... bxc6 {[%clk 0:04:52.6]} 11. Qf3
{[%clk 0:04:34.7]} 11... Rb8 {[%clk 0:04:49.2]} 12. Bb3 {[%clk 0:04:26.5]} 12...
Qa5 {[%clk 0:04:48.4]} 13. Na4 {[%clk 0:04:22.1]} 13... Kg7 {[%clk 0:04:42]} 14.
Rab1 {[%clk 0:04:17.1]} 14... h5 {[%clk 0:04:40.5]} 15. Nc3 {[%clk 0:04:13.6]}
15... Be6 {[%clk 0:04:36.9]} 16. Bxe6 {[%clk 0:04:09.8]} 16... fxe6 {[%clk
0:04:36.8]} 17. Rfd1 {[%clk 0:03:53.5]} 17... Rxb2 {[%clk 0:04:21.3]} 18. Rxb2
{[%clk 0:03:45.3]} 18... Bxc3 {[%clk 0:04:19]} 19. Rb3 {[%clk 0:03:40.2]} 19...
Rxf3 {[%clk 0:03:01.2]} 20. gxf3 {[%clk 0:03:33.4]} 20... Be5 {[%clk 0:02:57.6]}
21. Rdb1 {[%clk 0:03:28]} 21... Qxa2 {[%clk 0:02:53.1]} 22. Rb7 {[%clk
0:03:23.9]} 22... Kf6 {[%clk 0:02:51.3]} 23. R7b3 {[%clk 0:03:18.4]} 23... Qxc2
{[%clk 0:02:35.7]} 24. Kg2 {[%clk 0:03:14.5]} 24... g5 {[%clk 0:02:33.2]} 25. f4
{[%clk 0:03:09.9]} 25... Bxf4 {[%clk 0:02:30.4]} 26. R1b2 {[%clk 0:03:01.9]}
26... Qxe4+ {[%clk 0:02:29]} 27. f3 {[%clk 0:02:59.6]} 27... Qd5 {[%clk
0:02:26.8]} 28. Rb4 {[%clk 0:02:52]} 28... e5 {[%clk 0:02:23.3]} 29. Re4 {[%clk
0:02:45.2]} 29... g4 {[%clk 0:02:21.8]} 30. Rbe2 {[%clk 0:02:38.9]} 30... gxf3+
{[%clk 0:02:20.5]} 31. Kxf3 {[%clk 0:02:37.3]} 31... Kf5 {[%clk 0:02:20.4]} 32.
h4 {[%clk 0:02:31.6]} 32... Qd3+ {[%clk 0:02:19.3]} 33. Kg2 {[%clk 0:02:28.7]}
33... Qxe4+ {[%clk 0:02:18.6]} 34. Rxe4 {[%clk 0:02:25.9]} 34... Kxe4 {[%clk
0:02:18.5]} 35. Kf2 {[%clk 0:02:24.4]} 35... a5 {[%clk 0:02:18.4]} 36. Ke2
{[%clk 0:02:23.4]} 36... a4 {[%clk 0:02:18.3]} 37. Kd1 {[%clk 0:02:22.6]} 37...
a3 {[%clk 0:02:18.2]} 38. Kc2 {[%clk 0:02:21.6]} 38... d5 {[%clk 0:02:12.6]} 39.
Kb3 {[%clk 0:02:20.2]} 39... d4 {[%clk 0:02:11.9]} 40. Kxa3 {[%clk 0:02:19.1]}
40... d3 {[%clk 0:02:11.6]} 41. Kb3 {[%clk 0:02:18.3]} 41... Ke3 {[%clk
0:02:10.4]} 42. Kb2 {[%clk 0:02:16.8]} 42... d2 {[%clk 0:02:09.7]} 43. Kc2
{[%clk 0:02:15.7]} 43... Ke2 {[%clk 0:02:09.6]} 44. Kb2 {[%clk 0:02:13]} 44...
d1=Q {[%clk 0:02:08.8]} 45. Ka2 {[%clk 0:02:12.1]} 45... Qa4+ {[%clk 0:02:06]}
46. Kb1 {[%clk 0:02:10.7]} 46... Qb4+ {[%clk 0:02:00.3]} 47. Ka2 {[%clk
0:02:08.6]} 47... e4 {[%clk 0:01:57.4]} 48. Ka1 {[%clk 0:02:06.8]} 48... Be5+
{[%clk 0:01:57.3]} 49. Ka2 {[%clk 0:02:05.1]} 49... Qb2# {[%clk 0:01:57.2]} 0-1

[Event "Live Chess"]
[Site "Chess.com"]
[Date "2023.05.21"]
[Round "-"]
[White "nigelst"]
[Black "romchyk1219"]
[Result "1-0"]
[WhiteElo "1767"]
[BlackElo "633"]
[TimeControl "300"]
[EndTime "18:20:09 PDT"]
[Termination "nigelst won by checkmate"]

1. e4 {[%clk 0:04:58]} 1... d6 {[%clk 0:04:59.4]} 2. d4 {[%clk 0:04:56.1]} 2...
Nf6 {[%clk 0:04:58.9]} 3. Nc3 {[%clk 0:04:55.5]} 3... g6 {[%clk 0:04:58.3]} 4.
f4 {[%clk 0:04:54.9]} 4... Bg7 {[%clk 0:04:56.9]} 5. e5 {[%clk 0:04:54.5]} 5...
dxe5 {[%clk 0:04:56]} 6. dxe5 {[%clk 0:04:53.9]} 6... Nfd7 {[%clk 0:04:54.9]} 7.
Nf3 {[%clk 0:04:50.9]} 7... f6 {[%clk 0:04:53.2]} 8. e6 {[%clk 0:04:49.4]} 8...
Nb6 {[%clk 0:04:47.6]} 9. Qxd8+ {[%clk 0:04:45.2]} 9... Kxd8 {[%clk 0:04:45.1]}
10. Nd4 {[%clk 0:04:38.5]} 10... f5 {[%clk 0:04:42.9]} 11. Be3 {[%clk
0:04:34.9]} 11... Bxd4 {[%clk 0:04:39.1]} 12. Bxd4 {[%clk 0:04:33.2]} 12... Bxe6
{[%clk 0:04:39]} 13. Bxh8 {[%clk 0:04:30.8]} 13... Nc4 {[%clk 0:04:38.2]} 14.
O-O-O+ {[%clk 0:04:27.5]} 14... Kc8 {[%clk 0:04:34.9]} 15. Bxc4 {[%clk
0:04:25.9]} 15... Bxc4 {[%clk 0:04:32.9]} 16. Nd5 {[%clk 0:04:24.6]} 16... Bxa2
{[%clk 0:04:29.2]} 17. Nxe7# {[%clk 0:04:22.9]} 1-0

[Event "Live Chess"]
[Site "Chess.com"]
[Date "2023.05.21"]
[Round "-"]
[White "worldchessleaguelive"]
[Black "AlanPaling"]
[Result "1-0"]
[WhiteElo "1387"]
[BlackElo "1364"]
[TimeControl "300"]
[EndTime "18:21:00 PDT"]
[Termination "worldchessleaguelive won by resignation"]

1. d4 {[%clk 0:04:58.1]} 1... e5 {[%clk 0:04:58.3]} 2. dxe5 {[%clk 0:04:56.9]}
2... Nc6 {[%clk 0:04:57.6]} 3. Nf3 {[%clk 0:04:55.4]} 3... Qe7 {[%clk
0:04:56.8]} 4. e3 {[%clk 0:04:52.4]} 4... Nxe5 {[%clk 0:04:55]} 5. Nxe5 {[%clk
0:04:52.1]} 5... Qxe5 {[%clk 0:04:54]} 6. Be2 {[%clk 0:04:51.7]} 6... d5 {[%clk
0:04:49.8]} 7. O-O {[%clk 0:04:51.2]} 7... c6 {[%clk 0:04:44.9]} 8. Nc3 {[%clk
0:04:50.3]} 8... Nf6 {[%clk 0:04:42.7]} 9. Bf3 {[%clk 0:04:49.2]} 9... Bb4
{[%clk 0:04:39.2]} 10. Bd2 {[%clk 0:04:46.3]} 10... Bd6 {[%clk 0:04:29.9]} 11.
g3 {[%clk 0:04:42.9]} 11... O-O {[%clk 0:04:27.7]} 12. Re1 {[%clk 0:04:36.9]}
12... Bh3 {[%clk 0:04:20.1]} 13. e4 {[%clk 0:04:34.2]} 13... d4 {[%clk
0:04:17.6]} 14. Nb1 {[%clk 0:04:21.8]} 14... c5 {[%clk 0:04:14.9]} 15. Bf4
{[%clk 0:04:20.7]} 15... Qe6 {[%clk 0:03:53.2]} 16. e5 {[%clk 0:04:18.6]} 16...
Nd5 {[%clk 0:03:50.9]} 17. exd6 {[%clk 0:04:15.9]} 1-0